bitfinex-derivatives/quotes_SOLF0:USTF0_20240908
["timestamp","ask_amount","ask_price","bid_price","bid_amount"]
[1725815877057,3.1132,128.49,128.46,8.37]
[1725815877354,3.1132,128.49,128.47,4.16226186]
[1725815877547,3.1132,128.49,128.46,8.37]
[1725815878347,3.1132,128.49,128.47,3.87046329]
[1725815878754,3.1131,128.5,128.47,12.24046329]
[1725815879053,8.37,128.54,128.47,8.37]
[1725815879255,8.37,128.54,128.47,12.28717511]
[1725815879853,3.82530853,128.53,128.47,12.28717511]
[1725815880255,3.1131,128.5,128.47,12.28717511]
[1725815881756,3.85489269,128.53,128.47,12.28717511]
[1725815881958,4.1079,128.57,128.5,8.37]
[1725815882161,8.65607612,128.56,128.5,8.37]
[1725815882352,8.65607612,128.56,128.47,7.03077511]
[1725815882353,3.1127,128.51,128.47,3.91717511]
[1725815882549,3.1127,128.51,128.49,8.37]
[1725815883859,8.37,128.53,128.47,8.37]
[1725815884159,8.37,128.52,128.47,8.37]
[1725815884557,8.37,128.52,128.44,5.7739]
[1725815884757,8.37,128.5,128.45,11.45798268]
[1725815884963,3.1138,128.47,128.45,8.37]
[1725815886270,3.1139,128.46,128.42,139.72973112]
[1725815886554,3.1139,128.46,128.44,12.5357332]
[1725815886760,3.1139,128.46,128.44,8.37]
[1725815886959,3.1139,128.46,128.45,4.16576152]
[1725815888154,3.1139,128.46,128.44,8.37]
[1725815892660,3.1142,128.45,128.44,8.37]
[1725815892853,3.1142,128.45,128.44,12.53795219]
[1725815893058,3.1142,128.45,128.44,4.16795219]
[1725815893257,3.91561805,128.49,128.42,139.72973112]
[1725815893258,3.1146,128.43,128.42,139.72973112]
[1725815896161,3.1149,128.42,128.41,8.37]
[1725815898166,1.2709,128.46,128.4,12.34601491]
[1725815898167,3.1151,128.41,128.4,12.34601491]
[1725815898370,3.1151,128.41,128.4,8.37]
[1725815898570,1.2709,128.46,128.4,8.37]
[1725815898868,1.2709,128.46,128.4,12.3030218]
[1725815899255,1.2709,128.46,128.4,8.37]
[1725815900866,3.1151,128.42,128.4,8.37]
[1725815901561,3.1144,128.45,128.4,8.37]
[1725815901765,3.1144,128.45,128.39,6.92897352]
[1725815901766,1.2709,128.46,128.41,8.37]
[1725815902363,3.1149,128.42,128.41,8.37]
[1725815902863,1.2709,128.46,128.41,8.37]
[1725815904373,3.1147,128.43,128.41,8.37]
[1725815905068,3.1149,128.42,128.41,8.37]
[1725815905473,3.1149,128.42,128.4,8.37]
[1725815907875,3.1149,128.42,128.41,8.37]
[1725815908270,3.1147,128.43,128.41,8.37]
[1725815913366,1.3606,128.52,128.41,8.37]
[1725815913679,226.0,128.62,128.4,11.49328033]
[1725815913870,2.7036,128.59,128.52,8.37]
[1725815914184,8.37,128.56,128.42,11.49328033]
[1725815914369,8.37,128.56,128.39,5.12149032]
[1725815914370,8.37,128.56,128.5,8.37]
[1725815915970,3.1122,128.54,128.5,8.37]
[1725815916584,3.1122,128.54,128.49,5.23579527]
[1725815916585,3.1122,128.53,128.49,1.4045]
[1725815916783,3.1122,128.53,128.49,9.7745]
[1725815917278,3.112,128.54,128.49,1.4045]
[1725815917470,3.112,128.54,128.5,8.37]
[1725815918284,9.7606,128.56,128.5,8.37]
[1725815920479,3.1122,128.54,128.5,8.37]
[1725815921482,3.1122,128.53,128.5,8.37]
[1725815921986,3.98435675,128.55,128.5,8.37]
[1725815922183,9.7606,128.56,128.5,8.37]
[1725815922388,9.7606,128.56,128.49,3.1132]
[1725815922389,9.7606,128.56,128.51,8.37]
[1725815923386,3.112,128.54,128.51,8.37]
[1725815927786,3.1122,128.53,128.48,3.90380694]
[1725815927984,3.1122,128.53,128.5,8.37]
[1725815928501,3.1127,128.52,128.5,8.37]
[1725815928687,3.87812144,128.55,128.5,8.37]
[1725815929196,3.1121,128.54,128.5,8.37]
[1725815929689,1.343,128.59,128.53,8.37]
[1725815929885,1.343,128.59,128.49,3.96685317]
[1725815929886,1.3022,128.61,128.55,8.37]
[1725815930982,3.111,128.59,128.57,8.37]
[1725815931385,3.111,128.59,128.53,3.89913685]
[1725815931684,3.81493885,128.62,128.58,8.37]
[1725815932089,10.9507,128.63,128.58,8.37]
[1725815932688,8.37,128.62,128.57,8.37]
[1725815932891,3.89442192,128.61,128.57,8.37]
[1725815933395,3.1109,128.59,128.57,8.37]
[1725815935993,3.111,128.58,128.57,8.37]
[1725815936900,3.1106,128.6,128.57,8.37]
[1725815937098,3.89442192,128.61,128.57,8.37]
[1725815937300,10.9507,128.63,128.57,8.37]
[1725815937497,3.1105,128.61,128.58,8.37]
[1725815937702,3.92018348,128.62,128.58,8.37]
[1725815938199,8.54836265,128.64,128.58,8.37]
[1725815938394,0.28595436,128.63,128.59,8.37]
[1725815938704,3.1105,128.6,128.59,8.37]
[1725815938892,8.37,128.63,128.54,3.1119]
[1725815939092,8.37,128.62,128.56,8.37]
[1725815939800,8.65598763,128.61,128.54,12.16578988]
[1725815940004,11.1255,128.61,128.54,12.16578988]
[1725815940397,11.1255,128.61,128.54,8.37]
[1725815940791,3.1113,128.57,128.54,8.37]
[1725815941096,8.37,128.58,128.53,8.37]
[1725815941303,3.94477405,128.57,128.53,8.37]
[1725815941503,3.1119,128.55,128.53,8.37]
[1725815941705,3.94477405,128.57,128.53,8.37]
[1725815942103,8.37,128.58,128.5,145.25460643]
[1725815942412,8.37,128.57,128.51,8.37]
[1725815942706,12.20540295,128.56,128.51,8.37]
[1725815942908,8.37,128.56,128.51,8.37]
[1725815943296,3.1121,128.54,128.51,8.37]
[1725815943700,1.2733,128.6,128.53,8.37]
[1725815943901,8.65603314,128.59,128.53,8.37]
[1725815944102,8.37,128.59,128.53,8.37]
[1725815945605,3.1119,128.55,128.53,8.37]
[1725815946103,3.89805447,128.56,128.5,149.38390643]
[1725815946303,8.37,128.57,128.52,8.37]
[1725815946610,3.82140077,128.56,128.52,8.37]
[1725815946909,3.1122,128.53,128.52,8.37]
[1725815947109,12.2937354,128.57,128.52,8.37]
[1725815947305,3.112,128.54,128.52,8.37]
[1725815947609,12.2937354,128.57,128.52,8.37]
[1725815948502,12.2937354,128.57,128.5,153.31659125]
[1725815948701,12.2937354,128.57,128.52,8.37]
[1725815949105,3.1122,128.53,128.52,8.37]
[1725815950109,1.3781,128.61,128.52,8.37]
[1725815950318,3.82178291,128.62,128.58,8.37]
[1725815950520,8.54836265,128.64,128.58,8.37]
[1725815950702,0.28595245,128.63,128.58,8.37]
[1725815950902,3.79454284,128.62,128.58,8.37]
[1725815951206,16.91836265,128.64,128.59,8.37]
[1725815951616,3.1105,128.61,128.59,8.37]
[1725815952216,3.1105,128.61,128.57,20.91]
[1725815952910,3.1106,128.6,128.57,20.91]
[1725815955407,3.1103,128.61,128.57,20.91]
[1725815956715,3.1107,128.6,128.57,20.91]
[1725815958123,3.1105,128.61,128.57,20.91]
[1725815958326,3.1105,128.61,128.56,3.1114]
[1725815958327,3.94135034,128.63,128.56,3.1114]
[1725815958621,3.94135034,128.63,128.56,20.91]
[1725815959220,3.1103,128.61,128.57,20.91]
[1725815959725,8.54836265,128.64,128.57,20.91]
[1725815960420,3.1107,128.6,128.57,20.91]
[1725815960622,3.1107,128.6,128.57,24.88317051]
[1725815961222,8.54836265,128.64,128.57,24.88317051]
[1725815961735,11.65806265,128.64,128.61,20.91]
[1725815962231,8.54836265,128.64,128.61,20.91]
[1725815962922,11.65796265,128.64,128.61,20.91]
[1725815963526,3.1099,128.63,128.61,20.91]
[1725815963825,8.54836265,128.64,128.61,20.91]
[1725815964220,3.1098,128.63,128.61,20.91]
[1725815964421,8.54836265,128.64,128.61,20.91]
[1725815965023,3.11,128.62,128.61,20.91]
[1725815965223,8.54836265,128.64,128.59,20.91]
[1725815966827,3.1105,128.61,128.59,20.91]
[1725815967232,3.92760323,128.63,128.59,20.91]
[1725815968333,3.1105,128.6,128.59,20.91]
[1725815968523,8.54836265,128.64,128.59,20.91]
[1725815968924,3.1104,128.61,128.59,20.91]
[1725815971531,3.1105,128.6,128.59,20.91]
[1725815972227,8.54836265,128.64,128.59,8.36]
[1725815972430,8.54836265,128.64,128.63,8.36]
[1725815973348,8.54836265,128.64,128.6,3.97574362]
[1725815973349,3.1101,128.62,128.6,3.97574362]
[1725815973635,3.1101,128.62,128.61,8.36]
[1725815974230,8.54836265,128.64,128.61,8.36]
[1725815974430,8.54836265,128.64,128.63,8.36]
[1725815974824,8.54836265,128.64,128.6,3.81949692]
[1725815975039,8.54836265,128.64,128.61,8.36]
[1725815975249,8.54836265,128.64,128.57,3.92915872]
[1725815975434,8.54836265,128.64,128.6,8.36]
[1725815976228,3.1105,128.61,128.59,20.9]
[1725815976430,8.54836265,128.64,128.59,20.9]
[1725815976826,3.1103,128.62,128.61,20.9]
[1725815977939,8.54836265,128.64,128.61,20.9]
[1725815978139,8.54836265,128.64,128.63,20.9]
[1725815978928,4.0109,128.69,128.63,20.9]
[1725815979130,3.92996108,128.7,128.66,20.9]
[1725815979330,1.3052,128.74,128.66,20.9]
[1725815979544,0.28579529,128.73,128.66,20.9]
[1725815979843,2.7292,128.75,128.71,20.9]
[1725815980050,0.28578892,128.74,128.71,20.9]
[1725815980545,3.1079,128.71,128.69,20.9]
[1725815980743,1.3052,128.78,128.69,3.82629037]
[1725815980944,4.17263879,128.77,128.72,20.9]
[1725815981143,0.28569388,128.76,128.72,20.9]
[1725815981440,3.93223962,128.78,128.67,3.957]
[1725815981640,20.9,128.8,128.71,20.9]
[1725815981847,0.28562198,128.79,128.71,20.9]
[1725815982340,21.18562198,128.79,128.7,20.9]
[1725815982537,3.1076,128.72,128.7,20.9]
[1725815982738,20.9,128.79,128.7,20.9]
[1725815982935,3.1083,128.7,128.67,23.514]
[1725815983342,3.96488199,128.71,128.65,20.9]
[1725815983536,23.671,128.74,128.66,20.9]
[1725815983736,0.28571105,128.73,128.66,20.9]
[1725815983937,3.1083,128.7,128.66,20.9]
[1725815984137,3.1083,128.7,128.68,20.9]
[1725815984334,2.771,128.74,128.68,20.9]
[1725815984539,6.7253898,128.74,128.68,20.9]
[1725815984738,2.771,128.74,128.68,20.9]
[1725815985347,6.64788384,128.74,128.68,20.9]
[1725815985651,2.771,128.74,128.68,20.9]
[1725815986043,3.1081,128.71,128.68,20.9]
[1725815987148,3.1081,128.7,128.68,20.9]
[1725815987346,3.1081,128.7,128.66,22.1722]
[1725815988144,3.1084,128.69,128.66,22.1722]
[1725815988745,23.671,128.74,128.66,22.1722]
[1725815988746,3.1081,128.7,128.66,22.1722]
[1725815989760,3.1084,128.69,128.66,22.1722]
[1725815989950,23.671,128.74,128.66,22.1722]
[1725815990146,3.1083,128.7,128.66,22.1722]
[1725815990557,1.3917,128.74,128.66,22.1722]
[1725815990745,3.1079,128.71,128.66,22.1722]
[1725815991760,22.2917,128.74,128.65,20.9]
[1725815992449,0.28569828,128.73,128.65,20.9]
[1725815992649,21.18569828,128.73,128.65,20.9]
[1725815992851,20.9,128.71,128.63,20.9]
[1725815993049,3.1102,128.62,128.59,20.9]
[1725815993551,3.1103,128.61,128.59,20.9]
[1725815993747,24.76202627,128.66,128.59,20.9]
[1725815993952,20.9,128.66,128.58,2.6032]
[1725815994252,20.9,128.66,128.57,24.82915872]
[1725815994253,3.1104,128.61,128.57,24.82915872]
[1725815994648,3.1107,128.6,128.57,20.9]
[1725815995049,3.79128464,128.65,128.57,20.9]
[1725815995250,20.9,128.64,128.55,20.9]
[1725815995460,24.85465505,128.64,128.55,20.9]
[1725815995660,3.95465505,128.64,128.55,20.9]
[1725815995860,3.1106,128.6,128.57,20.9]
[1725815997764,3.93426682,128.68,128.59,20.9]
[1725815997952,3.93426682,128.68,128.62,20.9]
[1725815998152,3.1097,128.64,128.62,20.9]
[1725815998354,22.1779,128.69,128.6,20.9]
[1725815998756,3.11,128.63,128.6,20.9]
[1725815998956,3.83547257,128.66,128.6,20.9]
[1725815999156,22.1779,128.69,128.6,20.9]
[1725815999662,0.28582398,128.68,128.6,20.9]
[1725815999864,20.9,128.67,128.59,20.9]
[1725816000056,0.28583205,128.66,128.59,20.9]
[1725816000760,0.28583245,128.65,128.59,20.9]
[1725816001064,4.91831971,128.68,128.61,20.9]
[1725816001256,21.18583241,128.67,128.59,20.9]
[1725816001458,20.9,128.65,128.57,24.76693926]
[1725816001759,0.28583241,128.64,128.57,20.9]
[1725816001965,3.111,128.59,128.57,20.9]
[1725816002958,3.1111,128.58,128.55,20.9]
[1725816004064,20.9,128.62,128.54,1.2788]
[1725816004257,4.24432501,128.61,128.54,1.2788]
[1725816004454,0.28594306,128.6,128.54,1.2788]
[1725816004767,3.1115,128.56,128.54,1.2788]
[1725816006949,1.3523,128.63,128.55,20.9]
[1725816007157,0.28591964,128.62,128.55,20.9]
[1725816008266,1.3523,128.63,128.55,20.9]
[1725816008466,20.9,128.62,128.55,20.9]
[1725816008662,20.9,128.61,128.54,1.2788]
[1725816008971,3.1114,128.57,128.54,1.2788]
[1725816009466,3.85599813,128.61,128.54,1.2788]
[1725816009673,22.2523,128.63,128.54,1.2788]
[1725816010057,20.9,128.61,128.52,20.9]
[1725816010254,3.1118,128.55,128.52,20.9]
[1725816011257,3.1115,128.56,128.52,20.9]
[1725816011459,3.1115,128.56,128.54,20.9]
[1725816011662,24.69298272,128.61,128.54,20.9]
[1725816011854,3.1114,128.57,128.54,20.9]
[1725816012667,3.1115,128.56,128.54,20.9]
[1725816013664,3.1117,128.55,128.54,20.9]
[1725816014064,3.1117,128.55,128.52,20.9]
[1725816014863,3.112,128.54,128.52,20.9]
[1725816015167,20.9,128.59,128.51,569.8498]
[1725816015371,2.6641,128.58,128.51,569.8498]
[1725816015676,20.9,128.57,128.51,569.8498]
[1725816016066,22.1935,128.57,128.51,569.8498]
[1725816016965,3.1125,128.52,128.51,569.8498]
[1725816026480,3.1125,128.52,128.51,590.7498]
[1725816028480,3.1125,128.52,128.51,569.8498]
[1725816029582,3.112,128.54,128.51,590.7498]
[1725816032389,3.1122,128.53,128.51,569.8498]
[1725816033281,3.1121,128.54,128.51,569.8498]
[1725816035987,3.1122,128.53,128.51,569.8498]
[1725816037491,1.2935,128.57,128.51,590.7498]
[1725816037679,2.6641,128.58,128.52,20.9]
[1725816038088,2.6641,128.58,128.51,569.8498]
[1725816038787,3.1119,128.55,128.51,569.8498]
[1725816039085,8.25478272,128.61,128.54,20.9]
[1725816039287,1.0,128.62,128.56,24.0113]
[1725816039480,1.0,128.62,128.56,24.76459143]
[1725816039684,1.0,128.62,128.56,20.9]
[1725816039980,3.1106,128.6,128.56,20.9]
[1725816040792,24.9835,128.64,128.56,20.9]
[1725816041689,3.1105,128.61,128.56,20.9]
[1725816043382,3.1106,128.6,128.56,20.9]
[1725816045295,3.1108,128.59,128.55,20.9]
[1725816045497,3.1108,128.59,128.55,24.77289814]
[1725816045795,3.1108,128.59,128.55,24.79273522]
[1725816045983,3.1108,128.59,128.55,20.9]
[1725816046292,3.1108,128.59,128.55,24.76580855]
[1725816047396,3.1108,128.59,128.56,20.9]
[1725816048786,3.86745266,128.61,128.56,20.9]
[1725816048787,3.1104,128.61,128.56,20.9]
[1725816048987,3.1104,128.61,128.58,20.9]
[1725816050191,3.1106,128.6,128.58,20.9]
[1725816050394,3.1106,128.6,128.56,24.87099673]
[1725816050594,3.1106,128.6,128.56,20.9]
[1725816050794,3.1106,128.6,128.56,24.77026331]
[1725816051297,3.1106,128.6,128.56,27.88176331]
[1725816052791,3.1106,128.6,128.56,24.0115]
[1725816053293,3.1106,128.6,128.56,20.9]
[1725816053697,3.1106,128.6,128.56,24.79096301]
[1725816055299,3.1106,128.6,128.56,27.90226301]
[1725816056701,3.1108,128.59,128.56,24.79096301]
[1725816057099,20.9,128.61,128.54,1.275]
[1725816057300,2.7423,128.6,128.51,590.7498]
[1725816057598,3.1118,128.55,128.51,597.75366545]
[1725816057796,3.1118,128.55,128.51,594.64106545]
[1725816057994,3.1118,128.55,128.51,590.7498]
[1725816058196,4.1224,128.6,128.51,590.7498]
[1725816058197,3.112,128.54,128.51,590.7498]
[1725816058791,3.1123,128.53,128.51,590.7498]
[1725816060091,3.1125,128.52,128.51,569.8498]
[1725816061302,24.0125,128.52,128.51,561.4218]
[1725816061503,24.0125,128.52,128.51,421.44970001]
[1725816061809,24.29866534,128.52,128.51,421.44970001]
[1725816062006,24.0125,128.52,128.51,418.44970001]
[1725816062201,28.27845355,128.52,128.51,371.14100001]
[1725816062400,7.37845355,128.52,128.51,371.14100001]
[1725816062602,28.27845355,128.52,128.51,371.14100001]
[1725816063506,27.99226653,128.52,128.51,371.14100001]
[1725816063704,28.27842285,128.52,128.51,371.14100001]
[1725816064011,28.2784258,128.52,128.51,371.14100001]
[1725816064505,7.09226653,128.52,128.51,371.14100001]
[1725816064716,3.1125,128.52,128.51,371.14100001]
[1725816065104,20.9,128.57,128.51,371.14100001]
[1725816065305,189.0,128.66,128.51,371.14100001]
[1725816065306,20.9,128.59,128.51,371.14100001]
[1725816065513,0.28603749,128.58,128.52,20.9]
[1725816065812,3.1115,128.57,128.52,20.9]
[1725816066110,3.1105,128.6,128.55,20.9]
[1725816066506,20.9,128.61,128.54,20.9]
[1725816067115,3.1112,128.58,128.54,20.9]
[1725816068708,3.1108,128.59,128.54,20.9]
[1725816068905,3.1108,128.59,128.55,2.6824]
[1725816069108,20.9,128.62,128.55,2.6824]
[1725816069708,3.111,128.59,128.55,2.6824]
[1725816070406,3.1111,128.58,128.55,2.6824]
[1725816071616,20.9,128.62,128.55,2.6824]
[1725816071617,3.1113,128.57,128.55,2.6824]
[1725816071818,3.96725525,128.58,128.55,1.3947]
[1725816072003,20.9,128.59,128.53,1.3462]
[1725816072204,3.93410098,128.58,128.53,1.3462]
[1725816072408,20.9,128.6,128.53,1.3462]
[1725816072909,3.1112,128.58,128.53,1.3462]
[1725816073421,20.9,128.6,128.53,1.3462]
[1725816073623,3.111,128.58,128.53,1.3462]
[1725816073926,3.88508519,128.58,128.53,1.3462]
[1725816074129,20.9,128.6,128.53,1.3462]
[1725816075520,3.1114,128.57,128.53,1.3462]
[1725816076625,3.93643966,128.58,128.53,1.3462]
[1725816076825,20.9,128.6,128.53,1.3462]
[1725816078618,20.9,128.59,128.53,1.3462]
[1725816079421,3.112,128.54,128.53,1.3462]
[1725816079616,3.112,128.54,128.52,1.3708]
[1725816079617,3.8306172,128.55,128.51,371.14100001]
[1725816079830,20.9,128.57,128.51,371.14100001]
[1725816080028,3.1125,128.52,128.51,371.14100001]
[1725816090231,3.39867004,128.52,128.51,371.14100001]
[1725816090433,3.39867004,128.52,128.51,236.79100001]
[1725816090434,3.3986966,128.52,128.51,236.79100001]
[1725816090825,7.21817347,128.52,128.51,236.79100001]
[1725816091035,3.3986966,128.52,128.51,232.99100001]
[1725816091231,7.1948199,128.52,128.51,232.99100001]
[1725816091837,7.1948199,128.52,128.51,229.99100001]
[1725816091838,3.3986966,128.52,128.51,229.99100001]
[1725816092233,7.28057661,128.52,128.51,229.99100001]
[1725816092537,3.3986966,128.52,128.51,229.99100001]
[1725816092936,7.20582024,128.52,128.51,229.99100001]
[1725816093234,3.3986966,128.52,128.51,99.54100001]
[1725816093642,7.31483994,128.52,128.51,99.54100001]
[1725816093839,3.3986966,128.52,128.51,99.54100001]
[1725816094045,3.3986966,128.52,128.51,1e-08]
[1725816094546,30.67108922,128.52,128.51,1e-08]
[1725816094845,7.29110936,128.52,128.51,1e-08]
[1725816095430,30.67110936,128.52,128.51,1e-08]
[1725816096233,3.1144,128.45,128.4,2.7219]
[1725816096634,20.9,128.48,128.4,2.7219]
[1725816097439,3.1144,128.44,128.4,2.7219]
[1725816097645,162.94907304,128.5,128.41,20.9]
[1725816098037,162.94907304,128.5,128.41,24.015]
[1725816098637,3.1138,128.47,128.41,24.015]
[1725816099141,162.94907304,128.5,128.41,20.9]
[1725816099440,3.114,128.46,128.41,20.9]
[1725816100041,3.1143,128.45,128.41,20.9]
[1725816100439,3.1137,128.47,128.42,3.1147]
[1725816100867,162.94907304,128.5,128.41,20.9]
[1725816101140,3.1143,128.45,128.41,20.9]
[1725816101446,20.9,128.48,128.41,20.9]
[1725816102437,142.04907304,128.5,128.41,20.9]
[1725816102746,20.9,128.48,128.4,23.6219]
[1725816103042,20.9,128.48,128.4,26.7372]
[1725816103549,3.1142,128.45,128.4,26.7372]
[1725816103742,3.1142,128.45,128.42,20.9]
[1725816104747,3.1145,128.44,128.42,20.9]
[1725816108145,3.1142,128.45,128.42,20.9]
[1725816109553,162.94907304,128.5,128.44,20.9]
[1725816109554,142.04907304,128.5,128.44,20.9]
[1725816109949,142.04907304,128.5,128.45,1.2661]
[1725816111843,3.1139,128.47,128.45,1.2661]
[1725816115046,142.04907304,128.5,128.45,1.2661]
[1725816115254,3.1139,128.46,128.45,1.2661]
[1725816118548,3.1138,128.47,128.45,1.2661]
[1725816120554,3.1139,128.46,128.45,1.2661]
[1725816123559,142.04907304,128.5,128.43,1.2704]
[1725816123560,3.1144,128.44,128.43,1.2704]
[1725816124048,3.1149,128.42,128.41,1.3108]
[1725816134272,142.04907304,128.5,128.41,9.6808]
[1725816134472,142.04907304,128.5,128.44,8.37]
[1725816134767,150.41907304,128.5,128.44,8.37]
[1725816134969,3.1141,128.46,128.44,8.37]
[1725816135264,8.37,128.48,128.41,1.3108]
[1725816135476,3.1142,128.45,128.43,8.37]
[1725816136571,3.1144,128.44,128.42,8.37]
[1725816137964,3.1146,128.43,128.41,1.3108]
[1725816138364,3.1149,128.42,128.41,1.3108]
[1725816141470,12.34789171,128.45,128.39,2.6469]
[1725816141675,8.37,128.43,128.39,1.2853]
[1725816142369,3.1151,128.41,128.39,1.2853]
[1725816142977,3.1156,128.39,128.36,8.37]
[1725816143978,3.116,128.38,128.36,8.37]
[1725816145674,3.1161,128.37,128.35,9.649]
[1725816146780,8.37,128.39,128.34,9.7669]
[1725816147479,8.37,128.41,128.35,8.37]
[1725816148070,3.1161,128.37,128.35,8.37]
[1725816150574,8.37,128.43,128.36,8.37]
[1725816150783,8.37,128.43,128.38,8.37]
[1725816150784,3.85685342,128.42,128.38,8.37]
[1725816151386,3.1152,128.41,128.38,8.37]
[1725816151792,3.85685342,128.42,128.38,8.37]
[1725816152482,3.1153,128.41,128.38,8.37]
[1725816153973,3.85685342,128.42,128.38,8.37]
[1725816154175,8.37,128.44,128.39,8.37]
[1725816154380,3.89109605,128.43,128.39,8.37]
[1725816155285,3.1149,128.42,128.39,8.37]
[1725816156186,11.4846,128.44,128.39,11.4856]
[1725816156398,3.1146,128.44,128.41,8.37]
[1725816157175,3.1147,128.43,128.41,8.37]
[1725816157779,3.1147,128.43,128.4,1.4034]
[1725816157980,12.18056239,128.45,128.4,1.4034]
[1725816158473,3.1151,128.42,128.4,1.4034]
[1725816159388,3.1151,128.42,128.37,3.116]
[1725816159389,8.37,128.43,128.37,8.37]
[1725816159774,8.37,128.42,128.37,8.37]
[1725816160280,3.1154,128.4,128.37,8.37]
[1725816161280,8.37,128.41,128.35,1.3543]
[1725816161877,3.116,128.38,128.35,1.3543]
[1725816162078,8.37,128.39,128.35,1.3543]
[1725816163182,3.81174158,128.38,128.35,1.3543]
[1725816163488,3.83317118,128.38,128.35,1.3543]
[1725816163788,3.1163,128.37,128.35,1.3543]
[1725816169492,1.3114,128.44,128.35,1.3543]
[1725816169683,8.37,128.41,128.35,1.3543]
[1725816170492,3.116,128.38,128.35,1.3543]
[1725816171190,3.93143747,128.4,128.35,1.3543]
[1725816171398,8.37,128.4,128.35,1.3543]
[1725816171788,3.93883911,128.39,128.35,1.3543]
[1725816172395,3.116,128.38,128.35,1.3543]
[1725816174899,3.1157,128.39,128.35,12.8408]
[1725816175211,3.1157,128.39,128.37,8.37]
[1725816175500,1.3114,128.44,128.37,8.37]
[1725816175698,13.54583003,128.44,128.37,8.37]
[1725816176902,3.1153,128.41,128.37,8.37]
[1725816177999,3.1154,128.4,128.36,8.37]
[1725816178405,3.1153,128.41,128.37,8.37]
[1725816179503,3.1154,128.4,128.37,8.37]
[1725816179813,8.37,128.43,128.37,11.486]
[1725816181106,3.1153,128.41,128.37,8.37]
[1725816183003,3.1154,128.4,128.37,8.37]
[1725816183506,8.37,128.43,128.37,8.37]
[1725816185913,3.1155,128.4,128.37,8.37]
[1725816187607,8.37,128.42,128.35,4.4708]
[1725816187811,8.37,128.4,128.35,1.3543]
[1725816188008,3.1162,128.37,128.35,1.3543]
[1725816189413,8.37,128.39,128.34,1.3395]
[1725816189613,8.37,128.4,128.34,9.7095]
[1725816190624,8.37,128.41,128.36,8.37]
[1725816193023,3.1159,128.38,128.36,8.37]
[1725816195028,8.37,128.38,128.34,1.3395]
[1725816195230,8.37,128.38,128.33,1.3991]
[1725816195526,3.1165,128.36,128.33,1.3991]
[1725816195729,3.83910611,128.37,128.33,1.3991]
[1725816196026,3.1165,128.36,128.33,1.3991]
[1725816197322,3.1166,128.35,128.33,1.3991]
[1725816198828,3.1168,128.34,128.33,1.3991]
[1725816199228,3.1168,128.34,128.32,1.3844]
[1725816200028,3.1171,128.33,128.32,1.3844]
[1725816200426,8.37,128.35,128.31,1.2671]
[1725816200633,3.1173,128.32,128.31,1.2671]
[1725816202726,3.1173,128.32,128.31,9.6371]
[1725816203031,5.17583003,128.44,128.31,9.6371]
[1725816203333,5.17583003,128.44,128.4,8.37]
[1725816203532,3.86443003,128.44,128.4,8.37]
[1725816203732,8.37,128.44,128.39,8.37]
[1725816203929,3.83008573,128.44,128.39,8.37]
[1725816204131,9.3807,128.47,128.4,8.37]
[1725816204331,9.3807,128.47,128.41,8.37]